Cogmind - Beta 10 @@@ ROGUE MODE // 2020.09.15 @ 14:53:18 Player: Hechtic Result: Destroyed by G-34 Mercenary with Small Laser Performance ------------- Evolutions (0) 0 Regions Visited (1) 200 Robots Destroyed (30) 150 Value Destroyed (758) 758 Prototype IDs (0) 0 Alien Tech Used (0) 0 Bonus (24) 24 TOTAL SCORE: 1132 Bonus ------- High Alert Combat Kills 24 Cogmind --------- Core Integrity 0/250 Matter 265/300 Energy 125/125 System Corruption 0% Temperature Cool (6) Movement Rolling (80) Location -10/Materials Parts ------- > --- POWER (1) -------- Light Ion Engine > --- PROPULSION (2) --- Wheel > --- UTILITY (2) ------ Improved Heat Sink Small Storage Unit > --- WEAPON (2) ------- Light Assault Rifle Light Assault Rifle > --- INVENTORY (6) ---- Flight Unit Structural Scanner Improved Signal Interpreter Terrain Scan Processor Trap Extractor Datajack Peak State ------------ > --- POWER ------------ Ion Engine > --- PROPULSION ------- Light Treads Light Treads > --- UTILITY ---------- Improved Heat Sink Small Storage Unit > --- WEAPON ----------- Particle Gun Light Assault Rifle > --- INVENTORY -------- Light Ion Engine Aluminum Leg Aluminum Leg [Rating: 10] Favorites ----------- Power Ion Engine Engine Ion Engine Propulsion Aluminum Leg Treads Light Treads Leg Aluminum Leg Wheel Wheel Utility Small Storage Unit Device Improved Heat Sink Storage Small Storage Unit Weapon Light Assault Rifle Energy Gun Particle Gun Ballistic Gun Light Assault Rifle Launcher Grenade Launcher Build | -11 -10 ------- Run | Scr Mat Slots Evolved . | . . Power . | . . Propulsion . | . . Utility . | . . Weapon . | . . Parts Attached 22 | 6 16 Power 4 | 1 3 Engine 4 | 1 3 Core . | . . Reactor . | . . Propulsion 8 | 2 6 Treads 2 | 2 . Leg 2 | . 2 Wheel 4 | . 4 Hover . | . . Flight . | . . Utility 2 | 1 1 Device 1 | . 1 Storage 1 | 1 . Processor . | . . Hackware . | . . Protection . | . . Artifact . | . . Weapon 8 | 2 6 Energy Gun 2 | . 2 Energy Cannon . | . . Ballistic Gun 5 | 2 3 Ballistic Cannon . | . . Launcher 1 | . 1 Special Weapon . | . . Impact Weapon . | . . Slashing Weapon . | . . Piercing Weapon . | . . Special Melee Weapon . | . . Unidentified Prototypes . | . . Parts Lost 6 | . 6 Power 1 | . 1 Propulsion 1 | . 1 Utility . | . . Weapon 4 | . 4 Highest Loss Streak 3 | . 3 Average Slot Usage (%) 91 | . 91 Engine 12 | . 12 Treads 7 | . 7 Leg 12 | . 12 Wheel 7 | . 7 Device 10 | . 10 Storage 14 | . 14 Energy Gun 8 | . 8 Ballistic Gun 14 | . 14 Launcher 2 | . 2 Naked Turns . | . . Heaviest Build 14 | 10 14 Greatest Support 40 | 40 40 Greatest Overweight (x) 1 | . 1 Average Overweight (x) . | . . Largest Inventory Capacity 6 | 6 6 Average Capacity 5 | 5 6 Most Carried 6 | 4 6 Average Carried 4 | 2 4 Final Capacity 6 | 6 6 Final Carried 6 | 4 6 Class Distribution -------------------- 96% | Mutant 3% | Scavenger-Mutant Dominant Class ---------------- Mutant | -10/Materials Resources | -11 -10 ----------- Run | Scr Mat Matter Collected 579 | 210 369 Remotely . | . . Salvage Created 958 | . 958 Parts 73 | . 73 Haulers Intercepted . | . . Recyclers Shooed 1 | . 1 Parts Field Recycled . | . . Retrieved Matter . | . . Parts Self-Destructed . | . . Prevented . | . . Kills | -11 -10 ------- Run | Scr Mat Combat Hostiles Destroyed 24 | . 24 Guns 19 | . 19 AOE 5 | . 5 Classes Destroyed 6 | . 6 Worker 1 | . 1 Builder 1 | . 1 Recycler 2 | . 2 Watcher 2 | . 2 Swarmer 6 | . 6 Grunt 18 | . 18 Best Kill Streak 8 | . 8 Combat Bots Only 7 | . 7 Max Kills in Single Turn 4 | . 4 Gunslinging . | . . Exploded 3 | . 3 Melee . | . . Uniques/NPCs Destroyed . | . . Combat | -11 -10 -------- Run | Scr Mat Damage Taken 1270 | . 1270 Core 250 | . 250 Absorbed by Shields . | . . Core Remaining (%) 100 | 100 . Volleys Fired 106 | . 106 Largest 2 | . 2 Hottest 85 | . 85 Shots Fired 168 | . 168 Gun 162 | . 162 Cannon . | . . Launcher 6 | . 6 Special . | . . Kinetic 110 | . 110 Thermal 34 | . 34 Explosive 6 | . 6 Electromagnetic 18 | . 18 Robot Hit Streak 14 | . 14 Robot Miss Streak 4 | . 4 Penetration Max . | . . Secondary Targets 4 | . 4 Max Gunslinging Chain 1 | . 1 Shots Hit Robots 107 | . 107 Core Hits 61 | . 61 Critical Hits . | . . Critical Kills . | . . Critical Parts Destroyed . | . . Melee Attacks . | . . Impact . | . . Slashing . | . . Piercing . | . . Sneak Attacks . | . . Combat Hostiles . | . . Follow-up Attacks . | . . Damage Inflicted 1494 | . 1494 Guns 1168 | . 1168 Cannons . | . . Explosions 326 | . 326 Melee . | . . Ramming . | . . Kinetic 662 | . 662 Thermal 377 | . 377 Explosive 326 | . 326 Electromagnetic 129 | . 129 Impact . | . . Slashing . | . . Piercing . | . . Highest Corruption . | . . Average Corruption . | . . Corruption Purged . | . . Overload Shots . | . . Overflow Damage . | . . Projectiles . | . . Explosions . | . . Melee . | . . Knockbacks . | . . Impact . | . . Kinetic . | . . Secondary . | . . Self-Inflicted Damage . | . . Shots . | . . Rammed . | . . Targets Rammed . | . . Kicked . | . . Crushed . | . . Highest Temperature 56 | . 56 Average Temperature 17 | . 17 Received Heat Transfer 516 | . 516 Siege Activations . | . . Robots Corrupted . | . . Combat Hostiles . | . . Parts Fried . | . . Impact Corruptions . | . . Robots Melted . | . . Combat Hostiles . | . . Parts Melted . | . . Heat Transferred 888 | . 888 Parts Sabotaged . | . . Parts Stolen . | . . Parts Stripped . | . . Power Chain Reactions . | . . Missiles Intercepted . | . . Alert | -11 -10 ------- Run | Scr Mat Peak Influence 459 | . 459 Initial . | . . Average 157 | . 172 Maximum Alert Level 2 | . 2 Low Security (%) 67 | 100 64 Level 1 28 | . 31 Level 2 4 | . 4 Level 3 . | . . Level 4 . | . . Level 5 . | . . High Security . | . . Max Security . | . . Squads Dispatched 7 | . 7 Investigation 3 | . 3 Extermination . | . . Reinforcement 4 | . 4 Assault . | . . Garrison . | . . Intercept . | . . Construction Impeded . | . . Haulers Reinforced . | . . Stealth | -11 -10 --------- Run | Scr Mat Distress Signals 2 | . 2 Communications Jammed . | . . Distress Signals . | . . Times Spotted 38 | . 38 Peak Tracking Total 6 | . 6 Tactical Retreats 3 | . 3 Traps | -11 -10 ------- Run | Scr Mat Traps Triggered 1 | . 1 Indirectly . | . . Trap Hack Attempts . | . . Triggered . | . . Disarmed . | . . Reprogrammed 6 | . 6 Reused 1 | . 1 Traps Extracted . | . . Installed . | . . Triggered 1 | . 1 Machines | -11 -10 ---------- Run | Scr Mat Machines Disabled 1 | . 1 Max in Single Turn 1 | . 1 Machines Sabotaged . | . . Garrisons Compromised . | . . Overloaded Fab Kills . | . . Fab Network Shutdowns . | . . Hacking | -11 -10 --------- Run | Scr Mat Machines Accessed 2 | . 2 Terminals 2 | . 2 Fabricators . | . . Repair Stations . | . . Recycling Units . | . . Scanalyzers . | . . Garrison Access . | . . Total Hacks 8 | . 8 Successful 4 | . 4 Failed 4 | . 4 Catastrophic . | . . Database Lockouts . | . . Manual . | . . Terminals 8 | . 8 Fabricators . | . . Repair Stations . | . . Recycling Units . | . . Scanalyzers . | . . Garrison Access . | . . Terminal Hacks 4 | . 4 Locate Traps 1 | . 1 Reprogram Traps 1 | . 1 Reinforcement Status 1 | . 1 Zone Layout 1 | . 1 Fabricator Hacks . | . . Repair Station Hacks . | . . Recycling Unit Hacks . | . . Scanalyzer . | . . Garrison Access Hacks . | . . Unauthorized Hacks . | . . Terminals . | . . Fabricators . | . . Repair Stations . | . . Recycling Units . | . . Scanalyzers . | . . Garrison Access . | . . Data Cores Recovered . | . . Used . | . . Hacking Detections 2 | . 2 Full Trace Events 2 | . 2 Feedback Events . | . . Feedback Blocked . | . . Robot Schematics Acquired . | . . Robots Built . | . . Matter . | . . Time . | . . Total Robot Build Rating . | . . Part Schematics Acquired . | . . Parts Built . | . . Matter . | . . Time . | . . Total Part Build Rating . | . . Parts Repaired . | . . Time . | . . Parts Recycled . | . . Recycled Matter . | . . Retrieved Matter . | . . Retrieved Components . | . . Parts Scanalyzed . | . . Part Schematics Acquired . | . . Parts Damaged . | . . Bothacking | -11 -10 ------------ Run | Scr Mat Used RIF Installer . | . . Robots Hacked . | . . Non-combat . | . . Combat . | . . Robot Hacks Applied . | . . Relay Couplers Released . | . . Robots Rewired . | . . Allies Hacked . | . . Hacks Repelled . | . . Allies | -11 -10 -------- Run | Scr Mat Total Allies . | . . Largest Group . | . . Highest-Rated Group . | . . Highest-Rated Ally . | . . Total Orders . | . . Ally Attacks . | . . Total Damage . | . . Kills . | . . Allies Corrupted . | . . Allies Melted . | . . Intel | -11 -10 ------- Run | Scr Mat Robot Analysis Total . | . . Derelict Logs Recovered . | . . Drone Launches . | . . Drone Recoveries . | . . Exploration | -11 -10 ------------- Run | Scr Mat Turns Passed 865 | 78 787 Spaces Moved 490 | 42 448 Core 1 | 1 . Treads 127 | 41 86 Legs 172 | . 172 Wheels 190 | . 190 Hover . | . . Flight . | . . Fastest Speed 50 | 50 80 Average Speed 114 | 157 110 Slowest Speed 160 | 160 160 Overloaded Moves . | . . Propulsion Burnouts . | . . Robots Hopped . | . . Cave-ins Triggered . | . . Exploration Rate (%) 30 | 4 57 Regions Visited 1 Branch Regions . Pre-discovered Areas . | . . Known Exits Taken . | . . Unknown Exits Taken 1 | 1 . Scrap Searched . | . . Spaces Dug . | . . Terrain Destroyed 9 | . 9 Melee . | . . Projectile . | . . AOE 9 | . 9 Terrain Rammed . | . . Walls Destroyed . | . . Machines Disabled . | . . Actions | -11 -10 --------- Run | Scr Mat Total 639 | 51 588 Wait . | . . Move 489 | 41 448 Hop . | . . Pick Up 11 | 4 7 Fast Attach 14 | 6 8 Attach 2 | . 2 Detach . | . . Swap 6 | . 6 Drop 11 | . 11 Fire 106 | . 106 Melee . | . . Ram . | . . Kick . | . . Crush . | . . Escape Stasis . | . . Rewire . | . . Trap . | . . Miscellaneous . | . . Route ------- -11/Scrapyard -10/Materials (discovered 2 exits: [*Mat] / [*Min]) History --------- Turn | Location | Event 24 | -11/Scrapyard | Discovered new exit (range 15) 79 | -11/Scrapyard | Entered Materials 164 | -10/Materials | Discovered new exit (range 15) 321 | -10/Materials | Build established: Mutant 641 | -10/Materials | Discovered new exit (range 16) 662 | -10/Materials | Core integrity fell below 50% 849 | -10/Materials | Destroyed 7 combat bots 849 | -10/Materials | Core integrity fell below 20% 866 | -10/Materials | Destroyed by G-34 Mercenary with Small Laser Last Messages --------------- 00758_ Dropped Wheel. 00789_ W-16 Scout triggered Alarm Trap. 00789_ An alarm sounds. 00789_ ALERT: Alarm triggered, dispatching investigation squad. 00799_ Acquired 30 matter. 00811_ G-34 Mercenary destroyed. 00824_ Electrolysis Chamber disabled. 00826_ G-47 Trooper destroyed. 00828_ The unstable cave ceiling collapses. 00828_ G-34 Mercenary destroyed. 00839_ The unstable cave ceiling collapses. 00840_ Wheel destroyed. 00844_ Grenade Launcher destroyed. 00852_ EM Pulse Gun destroyed. 00857_ Acquired 12 matter. 00860_ Acquired 20 matter. 00861_ Acquired Lgt. Assault Rifle. 00863_ U-05 Engineer lays Concrete. 00863_ Acquired Lgt. Assault Rifle. 00864_ U-05 Engineer lays Concrete. Map ----- +----------------------------------------------------+ | ?????????????????????????????????????????? | | ######???????????????????????????????????? | | ???????????????????????????????????? | | ????? ???????????????????????????? | | ?????? ????????????????????????????? | | " """?? #????????????????????????????? | | """"""""" #????????????????????????????? | | """ """ #????????????????????????????? | | #????????????????????????????? | | #????????????????????????????? | | """"" #????????????????????????????? | | """"" #?? # # #???????? | | """"" ################## #???????? | | %%[ #???????? | | [*[ #???????? | | = * #???????? | | ###+####### ############???????? | | # # #??# #????#########?????? | | # # #??# #????# #?????? | | # # "" #??# #????# #?????? | | # # T" #### #????# """" #?????? | | # # "" + #????# """" #?????? | | # # #### #????# """" #?????? | | # ####+###??# #????# #?????? | | # #### ###### u###### #?????? | | # =! *%@ # #?????? | | # ########### ! * * "T" ####### | | # #????###### " " = = = # """ [# # | | # #????#|| ## "" %=g= # # % # | | # < #????#|| ## """ *==* * ###### # | | # #????#!! ## =[%! %= #""" # | | #####????#! ! = [== #""" # | | ?????????# ! #""" # | | ?????????#!! #+#+####### + # | | ?????????##### ### # #### #""" # | | ?????????????# ## #?# #""" # | | ?????????????# """ ## #?####""" # | | ?????????????# """ ## #????# # | | ?????????????#= """ ## #????# # | | ?????????????# ## """ #????####### | | ?????????????######### """"" #??????????? | | ?????????????????????# """"" #??????????? | | ?????????????????????# """"" #??????????? | | ?????????????????????# """ #??????????? | | ?????????????????????##########??????????? | | ?????????????????????????????????????????? | | | | | | | | | +----------------------------------------------------+ Best States ------------- Heat Dissipation 39 Energy Generation 10 Energy Capacity 250 Matter Stores 300 Matter Capacity 300 Sight Range 16 Terrain Scan Density 10 Evasion (%) 44 Recoil Reduction 2 Item Schematics ----------------- None Robot Schematics ------------------ None Fabricated ------------ Nothing Alien Tech Used ----------------- None Achievements -------------- None Challenges ------------ None Game ------ Seed UltimateArcShield Manual? 0 Play Time 00:18:25 Cumulative 11.3 hours Start 2020.09.14 @ 16:48:28 End 2020.09.15 @ 14:53:18 Sessions 3 Manual Loads 0 Difficulty Rogue Special Mode None Game No. 18 Rogue 18 Adventurer 0 Explorer 0 Win Type - Total 0 Types 0/0/0/0/0/0/0/0/0 Lore% 7 Gallery% 11 Achievement% 11 Wizard Run 0 Options --------- ASCII 0 Keyboard 0 Movement Mouse Keybinds 0 Fullscreen 1 Font 24/Smallcaps Map View 76x50 Tactical HUD 1 Map Filters NONE Filters NONE Steam 1 RUN: bdf3306c-1c78-4a19-9385-026b024a6398